bitfinex-derivatives/quotes_SOLF0:USTF0_20250823
["timestamp","ask_amount","ask_price","bid_price","bid_amount"]
[1755952605267,4.9366,202.66,202.65,8.13561708]
[1755952606664,4.9366,202.66,202.65,5.37561708]
[1755952606966,4.9371,202.64,202.59,2.76]
[1755952607165,4.9371,202.64,202.6,12.73711391]
[1755952607366,4.9371,202.64,202.61,12.73711391]
[1755952607563,4.9371,202.64,202.62,9.97711391]
[1755952607760,4.9371,202.64,202.63,5.37724962]
[1755952608165,4.9365,202.66,202.63,5.37724962]
[1755952608360,4.9365,202.66,202.64,8.13724962]
[1755952608564,4.9365,202.66,202.64,2.76]
[1755952609266,4.9365,202.66,202.65,5.38067982]
[1755952609663,4.9373,202.63,202.54,6.27917713]
[1755952609862,4.9373,202.63,202.57,2.76]
[1755952610063,4.9373,202.63,202.59,2.76]
[1755952610264,4.9368,202.65,202.62,2.76]
[1755952610565,4.9368,202.65,202.63,8.14085554]
[1755952610763,4.9368,202.65,202.64,5.38085554]
[1755952611269,4.9368,202.65,202.63,2.76]
[1755952611466,4.9368,202.65,202.64,5.38370151]
[1755952621072,4.9374,202.62,202.56,2.76]
[1755952621271,4.9374,202.62,202.57,16.23106646]
[1755952621573,4.9374,202.62,202.58,16.23145623]
[1755952621774,4.9374,202.62,202.6,2.76]
[1755952621972,4.9374,202.62,202.61,2.4868185]
[1755952622176,4.9384,202.58,202.53,2.76]
[1755952622373,4.9384,202.58,202.54,6.15349151]
[1755952622573,4.9384,202.58,202.55,6.15349151]
[1755952622775,4.9384,202.58,202.57,2.76]
[1755952622977,4.9384,202.58,202.57,6.15349151]
[1755952623679,4.9389,202.56,202.54,2.76]
[1755952623872,4.9389,202.56,202.55,6.15278041]
[1755952624073,4.9389,202.56,202.55,8.73278041]
[1755952624577,4.9384,202.58,202.55,8.73278041]
[1755952624877,16.15177713,202.67,202.56,6.15189989]
[1755952625077,137.41177713,202.67,202.57,8.73145574]
[1755952625378,137.41177713,202.67,202.57,2.58]
[1755952625574,16.15177713,202.67,202.58,1.82304248]
[1755952625779,121.26,202.66,202.57,2.58]
[1755952625975,121.26,202.66,202.58,1.82311605]
[1755952626177,121.26,202.66,202.59,1.8231137]
[1755952626374,121.26,202.66,202.57,2.58]
[1755952626375,4.938,202.6,202.57,2.58]
[1755952626576,4.938,202.6,202.58,1.82315655]
[1755952626772,4.938,202.6,202.59,1.82315655]
[1755952626972,4.938,202.6,202.59,4.40315655]
[1755952627178,4.9375,202.62,202.6,2.58]
[1755952627572,4.937,202.64,202.62,2.58]
[1755952627975,4.937,202.64,202.63,1.82231486]
[1755952628182,4.937,202.64,202.63,4.40231486]
[1755952628378,4.937,202.64,202.63,1.82231486]
[1755952629278,4.9364,202.66,202.64,2.58]
[1755952629885,4.9364,202.66,202.57,4.9385]
[1755952630182,4.9364,202.66,202.62,2.58]
[1755952630491,4.9364,202.66,202.63,8.72975697]
[1755952630782,4.9364,202.66,202.64,1.82254804]
[1755952630984,4.9364,202.66,202.65,1.82254804]
[1755952631980,4.9364,202.66,202.57,4.9385]
[1755952632281,4.9364,202.66,202.63,2.58]
[1755952632482,4.9364,202.66,202.64,1.82317124]
[1755952632686,4.9368,202.65,202.63,2.58]
[1755952632887,4.9368,202.65,202.64,1.82337164]
[1755952633184,24.6779,202.7,202.64,1.82352084]
[1755952633379,4.937,202.64,202.61,2.58]
[1755952633583,4.937,202.64,202.62,8.73420973]
[1755952633882,4.937,202.64,202.63,6.15420973]
[1755952634085,4.937,202.64,202.63,16.04254814]
[1755952636286,4.937,202.64,202.63,18.62254814]
[1755952636990,4.937,202.64,202.63,16.04254814]
[1755952637189,4.937,202.64,202.63,11.7120065]
[1755952637791,4.937,202.64,202.63,9.88833841]
[1755952638390,4.937,202.64,202.63,11.71290955]
[1755952638593,4.937,202.64,202.63,7.11197401]
[1755952638893,4.937,202.64,202.63,11.71732732]
[1755952639888,4.937,202.64,202.63,14.29732732]
[1755952641897,4.937,202.64,202.63,14.2979516]
[1755952642495,4.937,202.64,202.63,18.62796827]
[1755952642698,4.9365,202.66,202.64,2.58]
[1755952642896,4.9365,202.66,202.65,9.89279271]
[1755952647001,4.938,202.6,202.56,2.58]
[1755952647200,4.938,202.6,202.58,2.58]
[1755952647499,4.938,202.6,202.59,13.33878578]
[1755952647998,4.938,202.6,202.59,13.33877784]
[1755952648504,4.9375,202.62,202.59,13.33833434]
[1755952648701,4.9375,202.62,202.61,2.58]
[1755952648905,4.9375,202.62,202.61,7.18178779]
[1755952649095,4.9375,202.62,202.61,9.00638912]
[1755952649299,4.937,202.64,202.61,13.33640383]
[1755952649498,4.937,202.64,202.63,2.58]
[1755952649700,4.937,202.64,202.63,7.18178779]
[1755952649895,4.9365,202.66,202.63,7.18178779]
[1755952650103,4.9365,202.66,202.64,7.18004544]
[1755952650301,4.9365,202.66,202.65,7.18004544]
[1755952651103,127.47917713,202.71,202.65,6.42305842]
[1755952651104,4.936,202.68,202.65,6.42305842]
[1755952651306,4.936,202.68,202.67,2.58]
[1755952651506,4.936,202.68,202.67,7.18004544]
[1755952651706,4.936,202.68,202.67,4.60004544]
[1755952654111,4.936,202.68,202.65,2.6]
[1755952654309,4.936,202.68,202.66,4.58550041]
[1755952654510,4.936,202.68,202.67,4.58550041]
[1755952656212,4.936,202.68,202.6,4.9378]
[1755952656413,4.936,202.68,202.65,2.6]
[1755952656715,4.9363,202.67,202.65,2.6]
[1755952658209,4.9363,202.67,202.6,2.6]
[1755952658415,4.9358,202.69,202.62,2.6]
[1755952658711,4.9358,202.69,202.63,10.73521169]
[1755952658913,4.9358,202.69,202.64,15.81028416]
[1755952659104,4.9358,202.69,202.68,2.6]
[1755952660116,4.9361,202.68,202.63,2.6]
[1755952660318,4.9361,202.68,202.64,15.81431429]
[1755952660614,4.9361,202.68,202.66,2.6]
[1755952660814,4.9361,202.68,202.67,5.08276546]
[1755952661010,24.6762,202.71,202.61,2.6]
[1755952661211,24.6762,202.71,202.62,15.81531538]
[1755952661413,4.9358,202.69,202.63,15.81531538]
[1755952661619,131.0499,202.73,202.64,14.08973798]
[1755952661816,131.0499,202.73,202.65,9.66726835]
[1755952662012,4.936,202.68,202.66,9.66726835]
[1755952662208,4.936,202.68,202.57,28.8354033]
[1755952662411,121.18,202.73,202.62,2.6]
[1755952662613,121.18,202.73,202.64,2.6]
[1755952662815,121.18,202.73,202.65,15.81446599]
[1755952663014,121.18,202.73,202.66,14.08482605]
[1755952663209,121.18,202.73,202.67,9.66308493]
[1755952663410,4.9354,202.7,202.68,12.26308493]
[1755952663617,4.9354,202.7,202.63,4.937]
[1755952663817,4.9354,202.7,202.69,2.6]
[1755952664015,4.9354,202.7,202.69,12.25634097]
[1755952664711,121.16,202.74,202.69,12.25634097]
[1755952664917,121.16,202.74,202.7,5.07727654]
[1755952665115,121.16,202.74,202.69,2.6]
[1755952665312,121.16,202.74,202.7,5.07559117]
[1755952665509,109.56145849,202.75,202.69,2.6]
[1755952665715,230.70145849,202.75,202.69,2.6]
[1755952665914,372.67357713,202.79,202.7,5.07498575]
[1755952666110,121.14,202.78,202.71,2.6]
[1755952666922,4.9348,202.73,202.71,2.6]
[1755952668523,4.935,202.72,202.66,2.6]
[1755952668719,24.6689,202.77,202.67,18.38831172]
[1755952669017,4.9353,202.71,202.68,15.78831172]
[1755952669221,4.9353,202.71,202.63,6.27917713]
[1755952669222,4.9353,202.71,202.7,2.6]
[1755952669418,24.6702,202.76,202.7,12.24747596]
[1755952669722,4.9349,202.73,202.71,5.07261588]
[1755952669920,4.9349,202.73,202.72,5.07261588]
[1755952670417,4.9349,202.73,202.72,5.07287642]
[1755952670924,4.9349,202.73,202.72,9.64766819]
[1755952671825,4.9349,202.73,202.72,5.07287642]
[1755952672930,4.9349,202.73,202.71,2.6]
[1755952673827,4.9349,202.73,202.72,7.67258277]
[1755952674221,4.9344,202.75,202.72,9.64674198]
[1755952674417,4.9344,202.75,202.74,2.6]
[1755952674728,4.9346,202.74,202.64,2.6]
[1755952674928,4.9346,202.74,202.66,2.6]
[1755952675125,4.9346,202.74,202.67,15.78551017]
[1755952675323,4.9346,202.74,202.69,2.6]
[1755952675524,4.9346,202.74,202.7,15.78551017]
[1755952675724,4.9346,202.74,202.72,2.6]
[1755952675919,4.9346,202.74,202.73,7.66865829]
[1755952676430,4.9346,202.74,202.73,2.6]
[1755952676628,4.9346,202.74,202.73,7.76502375]
[1755952677628,121.12,202.76,202.74,2.6]
[1755952678526,331.86,202.79,202.74,2.6]
[1755952678732,121.08,202.78,202.63,10.42148043]
[1755952679027,331.86,202.79,202.71,2.6]
[1755952679230,121.08,202.78,202.72,9.7328405]
[1755952679431,121.08,202.78,202.73,7.76375093]
[1755952679626,121.08,202.78,202.73,2.6]
[1755952682134,331.86,202.79,202.64,2.6]
[1755952682336,121.06,202.78,202.74,2.6]
[1755952682534,121.06,202.79,202.75,5.16405038]
[1755952682736,121.06,202.79,202.74,2.6]
[1755952683037,121.06,202.79,202.75,7.76237052]
[1755952683236,121.06,202.79,202.75,2.6]
[1755952683434,121.06,202.79,202.68,2.62]
[1755952683641,121.06,202.79,202.7,2.62]
[1755952683841,121.06,202.79,202.71,11.52307832]
[1755952684137,121.06,202.79,202.72,9.70411604]
[1755952684334,121.06,202.79,202.73,5.16220999]
[1755952684539,121.06,202.79,202.71,2.62]
[1755952684738,121.06,202.79,202.72,9.70381164]
[1755952684940,121.06,202.79,202.73,5.16232423]
[1755952685135,121.06,202.79,202.71,2.62]
[1755952685441,121.06,202.79,202.72,9.70132834]
[1755952685739,121.06,202.79,202.73,5.16100314]
[1755952685939,121.06,202.79,202.69,2.62]
[1755952686139,121.06,202.79,202.71,2.62]
[1755952686338,121.06,202.79,202.72,9.70368726]
[1755952686540,121.06,202.79,202.73,5.16225807]
[1755952686743,121.06,202.79,202.71,2.62]
[1755952686941,121.06,202.79,202.72,9.7024554]
[1755952687140,121.04,202.78,202.73,5.1614925]
[1755952687341,121.04,202.78,202.74,5.1614925]
[1755952687541,121.04,202.78,202.74,2.62]
[1755952688944,121.04,202.78,202.71,2.62]
[1755952690745,121.04,202.78,202.72,4.54044999]
[1755952691447,331.76,202.9,202.74,2.62]
[1755952691448,14.81,202.89,202.74,2.62]
[1755952691646,14.81,202.87,202.75,4.31174092]
[1755952691850,121.02,202.86,202.76,6.93174092]
[1755952692051,121.02,202.86,202.77,4.31174092]
[1755952692247,121.02,202.86,202.76,2.62]
[1755952692550,121.02,202.86,202.77,4.30866458]
[1755952692752,121.02,202.86,202.78,6.35515864]
[1755952693546,121.02,202.86,202.79,4.53785008]
[1755952694046,121.02,202.86,202.8,4.53785008]
[1755952694541,121.02,202.86,202.81,4.53785008]
[1755952694742,121.02,202.86,202.72,2.62]
[1755952694947,135.83,202.86,202.73,4.30949687]
[1755952695245,135.83,202.86,202.72,2.62]
[1755952695449,135.83,202.86,202.73,4.31053698]
[1755952695744,127.29917713,202.86,202.72,2.62]
[1755952695949,127.29917713,202.86,202.73,4.31053698]
[1755952696150,142.10917713,202.86,202.72,2.62]
[1755952696351,142.10917713,202.86,202.73,4.31076118]
[1755952696546,127.29917713,202.86,202.74,11.52824503]
[1755952696753,127.29917713,202.86,202.75,14.14824503]
[1755952696955,127.29917713,202.86,202.76,9.7085158]
[1755952697146,127.29917713,202.86,202.77,9.7085158]
[1755952697444,127.29917713,202.86,202.78,5.16482673]
[1755952697651,127.29917713,202.86,202.75,2.62]
[1755952697953,127.29917713,202.86,202.76,9.70415842]
[1755952698251,127.29917713,202.86,202.77,9.70415842]
[1755952698455,6.27917713,202.86,202.78,5.16307204]
[1755952698752,121.0,202.85,202.75,2.62]
[1755952698956,121.0,202.85,202.76,11.52128972]
[1755952699157,121.0,202.85,202.77,11.52175617]
[1755952699457,121.0,202.85,202.78,9.70269644]
[1755952699754,121.0,202.85,202.79,5.16173088]
[1755952699945,121.0,202.85,202.8,5.16173088]
[1755952700149,121.0,202.85,202.72,6.27917713]
[1755952700349,121.0,202.85,202.81,2.62]
[1755952700849,121.0,202.85,202.78,2.62]
[1755952701049,121.0,202.85,202.79,9.6978912]
[1755952701249,121.0,202.85,202.8,5.15939517]
[1755952701450,121.0,202.85,202.78,2.62]
[1755952701645,121.0,202.85,202.79,4.53929603]
[1755952701850,121.0,202.85,202.78,2.62]
[1755952702054,121.0,202.85,202.79,5.15866045]
[1755952702252,121.0,202.85,202.78,2.62]
[1755952702452,121.0,202.85,202.79,5.1583727]
[1755952702650,121.0,202.85,202.78,2.62]
[1755952702847,121.0,202.85,202.79,5.15822555]
[1755952703052,121.0,202.85,202.78,2.62]
[1755952703249,121.0,202.85,202.79,5.15822555]
[1755952703454,121.0,202.85,202.73,2.62]
[1755952703754,121.0,202.85,202.75,2.62]
[1755952703955,121.0,202.85,202.77,2.62]
[1755952704157,121.0,202.85,202.78,9.69536125]
[1755952704357,121.0,202.85,202.79,5.15782856]
[1755952704559,121.0,202.85,202.77,2.62]
[1755952704853,332.61812569,202.9,202.79,2.62]
[1755952705059,120.96,202.89,202.8,11.50835055]
[1755952705258,120.96,202.89,202.81,12.31147141]
[1755952705560,331.76,202.9,202.82,5.15649083]
[1755952705762,120.96,202.89,202.81,2.62]
[1755952705960,120.96,202.89,202.82,5.15332331]
[1755952706162,120.96,202.89,202.83,5.15332331]
[1755952706460,120.96,202.89,202.81,2.62]
[1755952706659,120.96,202.88,202.77,2.62]
[1755952706857,120.96,202.88,202.78,11.48252389]
[1755952707052,120.96,202.88,202.79,9.6659447]
[1755952707257,120.96,202.88,202.77,2.62]
[1755952707258,120.96,202.88,202.8,5.13180417]
[1755952707455,120.96,202.88,202.77,2.62]
[1755952707661,120.96,202.88,202.78,9.6672422]
[1755952707863,120.96,202.88,202.79,5.13231263]
[1755952708157,121.81808337,202.88,202.69,2.62]
[1755952708361,121.81808337,202.88,202.68,4.12482416]
[1755952708362,6.27917713,202.86,202.71,2.62]
[1755952708557,6.27917713,202.87,202.73,2.62]
[1755952708758,6.27917713,202.87,202.74,11.48710576]
[1755952708961,6.27917713,202.87,202.75,9.66976961]
[1755952709263,120.96,202.86,202.76,9.67109386]
[1755952709469,120.96,202.86,202.77,5.13365436]
[1755952709666,120.96,202.86,202.78,5.13522466]
[1755952709966,120.96,202.86,202.75,2.62]
[1755952710165,120.96,202.86,202.76,9.67272751]
[1755952710366,120.96,202.85,202.77,7.75522466]
[1755952710566,120.96,202.85,202.78,5.13576636]
[1755952710767,120.96,202.85,202.77,2.62]
[1755952710967,120.96,202.85,202.78,9.67221649]
[1755952711170,120.96,202.85,202.79,5.1349534]
[1755952711370,120.96,202.85,202.77,2.62]
[1755952711567,120.96,202.85,202.78,9.67362494]
[1755952711768,120.96,202.85,202.79,5.13570427]
[1755952712065,120.96,202.85,202.8,5.13569501]
[1755952712270,120.96,202.85,202.77,2.62]
[1755952712471,120.96,202.85,202.78,9.69124403]
[1755952712672,125.8917,202.85,202.79,9.69124403]
[1755952712871,125.8917,202.85,202.8,5.13551041]
[1755952713072,125.8917,202.85,202.77,2.62]
[1755952713272,125.8917,202.85,202.78,9.6913546]
[1755952713570,125.8917,202.85,202.79,9.6913546]
[1755952713871,125.8917,202.85,202.8,5.135569]
[1755952714073,125.8917,202.85,202.77,2.62]
[1755952714272,125.8917,202.85,202.78,14.00328694]
[1755952714468,125.8917,202.85,202.79,9.69181034]
[1755952714667,125.8917,202.85,202.8,5.1358105]
[1755952714974,125.8917,202.85,202.77,2.62]
[1755952715272,125.8917,202.85,202.78,14.00441826]
[1755952715472,120.96,202.85,202.79,5.13641]
[1755952715675,120.94,202.86,202.77,2.62]
[1755952715863,120.94,202.86,202.79,2.72]
[1755952716362,120.94,202.86,202.8,5.13718416]
[1755952716562,120.94,202.86,202.81,5.13719084]
[1755952716874,120.94,202.86,202.82,5.13719084]
[1755952717075,120.94,202.86,202.81,2.72]
[1755952717274,120.94,202.86,202.82,5.13719084]
[1755952717468,120.94,202.86,202.77,2.72]
[1755952717775,125.8717,202.86,202.78,15.82686251]
[1755952717976,125.8717,202.86,202.79,11.51450034]
[1755952718169,125.8717,202.86,202.8,9.69570057]
[1755952718474,125.8717,202.86,202.81,9.69570057]
[1755952718775,125.8717,202.86,202.82,5.13787198]
[1755952718975,125.8717,202.86,202.77,2.72]
[1755952719175,125.8717,202.86,202.78,15.82988822]
[1755952719376,125.8717,202.86,202.79,11.51689244]
[1755952719579,125.8717,202.86,202.8,9.69771482]
[1755952719779,125.8717,202.86,202.82,2.72]
[1755952720276,125.8717,202.86,202.79,2.72]
[1755952720473,125.8717,202.86,202.8,11.51760094]
[1755952720674,125.8717,202.86,202.81,12.41832514]
[1755952720675,120.94,202.86,202.81,12.41832514]
[1755952720871,120.94,202.86,202.82,9.69832514]
[1755952721072,120.94,202.86,202.83,5.13926307]
[1755952721273,120.94,202.86,202.81,2.72]
[1755952721470,120.94,202.86,202.82,9.6994469]
[1755952721675,120.94,202.86,202.83,5.13985741]
[1755952721981,120.94,202.86,202.77,7.6536]
[1755952722180,120.94,202.86,202.78,15.83235013]
[1755952722473,120.94,202.86,202.79,18.55235013]
[1755952722680,125.8717,202.86,202.8,15.83235013]
[1755952722875,125.8717,202.86,202.81,14.23891545]
[1755952723070,125.8717,202.86,202.82,9.69944586]
[1755952723269,125.8717,202.86,202.83,9.69944586]
[1755952723481,125.8717,202.86,202.84,5.13985686]
[1755952723676,125.8717,202.86,202.81,2.72]
[1755952723875,125.8717,202.86,202.82,9.69907847]
[1755952724078,125.8717,202.86,202.83,9.69907847]
[1755952724279,125.8717,202.86,202.8,2.72]
[1755952724280,125.8717,202.86,202.84,5.13779977]
[1755952724480,125.8717,202.86,202.8,2.72]
[1755952724681,125.8717,202.86,202.81,14.24153698]
[1755952724881,125.8717,202.86,202.82,9.70102783]
[1755952725182,125.8717,202.86,202.83,9.70102783]
[1755952725382,125.8717,202.86,202.84,5.13883239]
[1755952725582,125.8717,202.86,202.81,2.72]
[1755952725781,125.8717,202.86,202.82,9.70111556]
[1755952726084,125.8717,202.86,202.83,9.70111556]
[1755952726283,125.8717,202.86,202.81,2.72]
[1755952726485,125.8717,202.86,202.82,9.70112621]
[1755952726684,125.8717,202.86,202.83,9.70112621]
[1755952726986,125.8717,202.86,202.84,5.1388845]
[1755952727187,125.8717,202.86,202.81,2.72]
[1755952727386,125.8717,202.86,202.82,9.70522218]
[1755952727686,125.8717,202.86,202.83,9.70522218]
[1755952727986,125.8717,202.86,202.84,5.14105422]
[1755952728181,125.8717,202.86,202.81,2.72]
[1755952728376,125.8717,202.86,202.82,9.70691964]
[1755952728680,125.8717,202.86,202.83,9.70691964]
[1755952728881,125.8717,202.86,202.84,5.1419534]
[1755952729081,125.8717,202.86,202.81,2.72]
[1755952729277,125.8717,202.86,202.82,11.52895637]
[1755952729589,125.8717,202.86,202.83,9.7070787]
[1755952729788,125.8717,202.86,202.84,9.7070787]
[1755952729988,125.8717,202.86,202.85,5.14203776]
[1755952730185,125.8717,202.86,202.85,5.14343598]
[1755952731294,125.8717,202.86,202.85,9.71305227]
[1755952731992,125.8717,202.86,202.85,9.71298929]
[1755952732491,125.8717,202.86,202.85,5.14343598]
[1755952736791,125.8717,202.86,202.85,9.71452589]
[1755952736997,120.94,202.86,202.85,11.53846748]
[1755952737496,120.9,202.89,202.85,14.25846748]
[1755952737691,120.9,202.89,202.86,9.71452589]
[1755952737893,120.9,202.89,202.87,9.71452589]
[1755952738097,120.9,202.89,202.88,5.14343598]
[1755952738994,125.8309,202.89,202.88,5.15286002]
[1755952739194,4.9309,202.89,202.88,9.72101975]
[1755952739398,4.9309,202.89,202.88,4.56815973]
[1755952739597,4.9309,202.89,202.88,9.72039862]
[1755952739799,4.9309,202.89,202.88,9.71961064]
[1755952740202,4.9304,202.91,202.88,9.71961064]
[1755952740400,4.9304,202.91,202.89,5.15145091]
[1755952740698,120.9,202.92,202.85,2.72]
[1755952740901,120.9,202.92,202.86,15.87525915]
[1755952741199,120.9,202.92,202.87,9.71844383]
[1755952741401,120.9,202.92,202.88,9.71844383]
[1755952741699,120.9,202.92,202.89,9.71730596]
[1755952741899,4.9302,202.91,202.9,5.15217546]
[1755952742602,4.9302,202.91,202.9,9.68980464]
[1755952743300,4.9302,202.91,202.9,9.68852105]
[1755952744402,120.9,202.92,202.9,12.33852105]
[1755952744605,120.9,202.92,202.91,9.68852105]
[1755952745101,331.58,202.98,202.91,14.15920645]
[1755952745301,120.88,202.96,202.92,11.50920645]
[1755952745498,120.88,202.96,202.93,14.15920645]
[1755952745698,120.88,202.96,202.94,9.68852105]
[1755952745901,120.88,202.96,202.95,5.15217546]
[1755952746594,120.88,202.96,202.92,2.65]
[1755952746795,120.88,202.96,202.93,7.7852793]
[1755952747100,125.8091,202.96,202.93,2.65]
[1755952749004,125.8091,202.96,202.9,4.9303]
[1755952749306,125.8091,202.96,202.92,2.65]
[1755952749605,125.8091,202.96,202.93,2.65]
[1755952750204,125.8091,202.96,202.89,2.65]
[1755952750405,125.8091,202.96,202.9,9.64915351]
[1755952750606,125.8091,202.96,202.91,7.77831343]
[1755952750801,125.8091,202.96,202.88,4.9309]
[1755952750802,125.8091,202.96,202.92,7.77831343]
[1755952751005,125.8091,202.96,202.92,2.65]
[1755952751403,125.8091,202.96,202.89,4.9306]
[1755952751606,125.8091,202.96,202.93,2.65]
[1755952751807,125.8091,202.96,202.9,7.5803]
[1755952752106,4.9291,202.96,202.92,2.65]
[1755952752406,4.9286,202.98,202.91,2.65]
[1755952752808,4.9286,202.98,202.92,7.77384029]
[1755952753007,4.9286,202.98,202.92,2.65]
[1755952754009,120.84,202.99,202.91,7.58]
[1755952754010,4.9289,202.97,202.91,7.58]
[1755952754510,120.84,202.99,202.91,2.65]
[1755952754905,120.84,202.99,202.88,2.65]
[1755952754906,4.9294,202.95,202.88,2.65]
[1755952755106,4.9294,202.95,202.89,13.94839298]
[1755952755302,4.9294,202.95,202.9,5.12309349]
[1755952755506,4.9294,202.95,202.91,7.77309349]
[1755952755711,4.9294,202.95,202.91,2.65]
[1755952755910,4.9294,202.95,202.88,4.9308]
[1755952756105,4.9294,202.95,202.92,2.65]
[1755952756609,4.9289,202.97,202.92,2.65]
[1755952756809,4.9289,202.97,202.93,5.12183106]
[1755952757011,120.84,202.99,202.92,2.65]
[1755952757311,4.9291,202.96,202.93,5.12103581]
[1755952757512,4.9291,202.96,202.92,2.65]
[1755952757811,4.9291,202.96,202.93,5.12098796]
[1755952758018,4.9291,202.96,202.92,2.65]
[1755952758202,4.9291,202.96,202.93,5.12079538]
[1755952758404,4.9291,202.96,202.92,2.65]
[1755952758603,4.9291,202.96,202.93,5.1201132]
[1755952758812,4.9291,202.96,202.92,2.65]
[1755952759012,4.9291,202.96,202.93,5.12011168]
[1755952759213,4.9291,202.96,202.92,2.65]
[1755952759412,4.9291,202.96,202.93,5.11955409]
[1755952759612,4.9291,202.96,202.92,2.65]
[1755952759813,4.9291,202.96,202.93,5.11958173]
[1755952760013,4.9291,202.96,202.92,2.65]
[1755952760216,4.9294,202.95,202.93,5.119117]
[1755952760416,6.27917713,202.98,202.87,2.65]
[1755952760616,6.27917713,202.98,202.88,9.63679785]
[1755952760816,4.9299,202.93,202.89,7.77158793]
[1755952761018,4.9299,202.93,202.9,5.12158793]
[1755952761217,4.9299,202.93,202.89,2.65]
[1755952761516,4.9299,202.93,202.9,5.12018017]
[1755952761715,4.9294,202.95,202.9,2.65]
[1755952762218,151.76077713,202.99,202.9,2.65]
[1755952762219,4.9296,202.94,202.9,2.65]
[1755952763014,4.9292,202.96,202.91,5.11996361]
[1755952763309,120.8,202.99,202.89,7.5806]
[1755952763511,120.8,202.99,202.9,5.12012448]
[1755952763715,120.8,202.99,202.91,5.12012448]
[1755952763910,120.8,202.99,202.89,7.5806]
[1755952764106,120.8,202.99,202.9,5.12035601]
[1755952764308,120.8,202.99,202.91,5.12035601]
[1755952764508,4.9296,202.94,202.89,2.65]
[1755952764711,4.9296,202.94,202.9,5.11967605]
[1755952764910,145.4416,202.99,202.91,5.11967605]
[1755952765114,145.4416,202.99,202.89,2.65]
[1755952765315,145.4416,202.99,202.9,5.11875286]
[1755952765519,145.4416,202.99,202.91,5.11875286]
[1755952765711,4.9299,202.93,202.89,2.65]
[1755952765919,4.9299,202.93,202.86,2.65]
[1755952766119,4.9299,202.93,202.87,15.74881849]
[1755952766413,4.9299,202.93,202.86,2.65]
[1755952766414,4.9299,202.93,202.88,16.58691737]
[1755952766620,4.9299,202.93,202.89,5.11904251]
[1755952766815,4.9301,202.92,202.9,5.11904251]
[1755952767015,24.6454,202.96,202.84,2.65]
[1755952767218,24.6454,202.96,202.86,2.65]
[1755952767517,24.6454,202.96,202.87,5.16111668]
[1755952767714,4.9301,202.92,202.88,7.81111668]
[1755952768019,4.9301,202.92,202.89,2.65]
[1755952770021,4.9296,202.94,202.91,2.65]
[1755952770817,4.9296,202.94,202.88,2.65]
[1755952771017,4.9296,202.94,202.9,2.65]
[1755952771218,4.9296,202.94,202.91,5.16053752]
[1755952771513,4.9296,202.94,202.9,2.65]
[1755952771716,4.9296,202.94,202.91,5.16138986]
[1755952771919,4.9296,202.94,202.9,2.65]
[1755952772323,4.9296,202.94,202.91,7.81171767]
[1755952772525,4.9296,202.94,202.91,2.65]
[1755952772920,4.9296,202.94,202.92,2.65]
[1755952773417,4.9296,202.94,202.88,2.64]
[1755952773623,4.9296,202.94,202.9,2.64]
[1755952773823,4.9296,202.94,202.91,12.34046806]
[1755952774119,4.9296,202.94,202.92,5.16410513]
[1755952774421,4.9296,202.94,202.91,2.64]
[1755952774622,4.9296,202.94,202.92,5.16362869]
[1755952774821,4.9291,202.96,202.93,7.80362869]
[1755952775017,4.9291,202.96,202.93,2.64]
[1755952775222,120.8,202.99,202.89,2.64]